bitfinex/quotes_SOLUSD_20240918
["timestamp","ask_amount","ask_price","bid_price","bid_amount"]
[1726674404337,39.6071,127.51,127.46,0.25098]
[1726674404338,7.8438,127.49,127.46,0.25098]
[1726674405330,7.8432,127.5,127.47,0.12549]
[1726674406434,26.8158,127.54,127.47,0.12549]
[1726674406632,20.0,127.53,127.47,0.12549]
[1726674407026,7.8437,127.49,127.47,0.12549]
[1726674407609,7.8437,127.49,127.48,0.25098]
[1726674408722,7.8412,127.54,127.49,0.12549]
[1726674408914,19.6012,127.55,127.49,0.12549]
[1726674409114,19.6012,127.55,127.48,0.25098]
[1726674409531,7.8433,127.5,127.48,0.25098]
[1726674410032,7.8425,127.51,127.48,0.25098]
[1726674410335,7.8411,127.54,127.5,0.25098]
[1726674410632,7.4211,127.57,127.5,0.25098]
[1726674411135,19.5991,127.56,127.49,0.12549]
[1726674411310,19.5991,127.56,127.49,0.37647]
[1726674411642,7.8431,127.5,127.49,0.37647]
[1726674412135,7.8431,127.5,127.47,17.8896]
[1726674412428,7.8431,127.5,127.48,0.12549]
[1726674412729,7.4211,127.57,127.45,0.2489396]
[1726674412730,20.0,127.49,127.45,0.2489396]
[1726674412934,7.8445,127.48,127.45,0.2489396]
[1726674413135,7.8438,127.49,127.45,0.2489396]
[1726674413443,7.8444,127.48,127.45,0.2489396]
[1726674414038,7.8444,127.48,127.46,0.37647]
[1726674415043,7.8449,127.47,127.46,0.37647]
[1726674416043,39.6065,127.51,127.46,0.37647]
[1726674416240,20.0,127.53,127.46,24.153354]
[1726674417345,7.8441,127.49,127.46,24.153354]
[1726674417849,7.8441,127.49,127.46,25.72214548]
[1726674418027,7.8441,127.49,127.46,24.153354]
[1726674419229,7.8444,127.48,127.46,0.37647]
[1726674419530,7.8449,127.47,127.45,0.2489396]
[1726674420544,19.6051,127.52,127.46,0.12549]
[1726674420545,7.8444,127.48,127.46,0.12549]
[1726674420923,7.8444,127.48,127.46,0.25098]
[1726674421324,20.0,127.49,127.45,0.2489396]
[1726674421857,7.845,127.47,127.45,0.2489396]
[1726674422028,7.8445,127.48,127.45,0.2489396]
[1726674422348,7.8449,127.47,127.45,0.2489396]
[1726674422852,7.8449,127.47,127.46,0.25098]
[1726674423148,20.0,127.51,127.46,0.25098]
[1726674423644,7.8439,127.49,127.46,0.25098]
[1726674423860,7.8432,127.5,127.47,0.12549]
[1726674424153,19.6015,127.55,127.49,0.12549]
[1726674424441,26.8695,127.57,127.5,24.027864]
[1726674424655,7.8425,127.51,127.5,0.25098]
[1726674424850,7.8438,127.49,127.46,24.3877]
[1726674425026,7.8438,127.49,127.47,0.12549]
[1726674425228,7.8438,127.49,127.47,0.25098]
[1726674425740,7.8443,127.48,127.47,0.25098]
[1726674425926,7.8439,127.49,127.47,0.25098]
[1726674426131,7.8439,127.49,127.46,24.51319]
[1726674426132,19.6068,127.51,127.45,0.4999196]
[1726674426344,7.8451,127.47,127.46,0.12549]
[1726674426559,7.8435,127.5,127.46,0.25098]
[1726674426754,39.6051,127.52,127.46,0.12549]
[1726674426959,7.8449,127.47,127.46,0.12549]
[1726674427334,7.8449,127.47,127.46,0.25098]
[1726674427552,39.6051,127.52,127.47,0.12549]
[1726674427553,20.0,127.52,127.47,0.12549]
[1726674427856,20.0,127.54,127.47,0.12549]
[1726674428254,7.8425,127.51,127.48,0.25098]
[1726674428458,7.8431,127.5,127.48,0.25098]
[1726674429161,7.8437,127.49,127.48,0.25098]
[1726674429356,7.8437,127.49,127.46,24.027864]
[1726674429669,7.8437,127.49,127.47,0.12549]
[1726674430077,19.602,127.54,127.47,0.12549]
[1726674430259,7.8426,127.51,127.49,0.12549]
[1726674430767,7.842,127.52,127.49,0.12549]
[1726674431145,7.8426,127.51,127.49,0.12549]
[1726674431350,20.0,127.54,127.48,0.12549]
[1726674431545,20.0,127.55,127.48,0.12549]
[1726674431752,20.0,127.52,127.46,0.25098]
[1726674431962,7.8448,127.48,127.46,0.25098]
[1726674435052,7.8438,127.49,127.46,0.25098]
[1726674435374,7.8429,127.51,127.48,0.12549]
[1726674435582,38.4058,127.56,127.49,0.12549]
[1726674435752,7.842,127.52,127.5,0.12549]
[1726674435955,7.8425,127.51,127.5,0.12549]
[1726674436268,7.8421,127.52,127.5,0.25098]
[1726674436577,7.841,127.54,127.51,0.12549]
[1726674436756,7.8413,127.53,127.51,0.12549]
[1726674436963,7.8413,127.53,127.51,0.25098]
[1726674437261,7.8413,127.53,127.52,0.12549]
[1726674437446,7.8419,127.52,127.51,0.12549]
[1726674437977,19.5996,127.56,127.52,0.12549]
[1726674438557,7.841,127.54,127.52,0.12549]
[1726674440093,7.8401,127.55,127.52,0.12549]
[1726674440251,0.2489396,127.59,127.55,0.12549]
[1726674441287,0.2489396,127.59,127.55,0.25098]
[1726674441466,7.8388,127.57,127.56,0.25098]
[1726674441669,7.8388,127.57,127.56,0.37647]
[1726674443280,7.8394,127.56,127.55,0.12549]
[1726674443483,20.2489396,127.59,127.55,0.12549]
[1726674443785,19.5957,127.58,127.5,18.0583]
[1726674443973,7.8418,127.53,127.5,18.0583]
[1726674444175,20.0,127.55,127.46,25.6403]
[1726674444381,7.8439,127.49,127.46,25.6403]
[1726674445296,7.8432,127.5,127.46,33.4858]
[1726674445475,20.0,127.55,127.46,25.6403]
[1726674445476,39.6012,127.55,127.46,25.6403]
[1726674445677,39.6012,127.55,127.48,0.37647]
[1726674445872,7.8429,127.51,127.48,0.37647]
[1726674446066,39.6012,127.55,127.48,0.37647]
[1726674447377,7.8426,127.51,127.48,0.37647]
[1726674447889,20.0,127.52,127.46,18.4598]
[1726674448093,20.0,127.52,127.45,0.2489396]
[1726674448573,44.027864,127.53,127.45,0.2489396]
[1726674448773,20.0,127.5,127.45,0.2489396]
[1726674449208,7.8455,127.47,127.45,0.2489396]
[1726674449503,20.0,127.5,127.45,0.2489396]
[1726674449504,7.8455,127.46,127.45,0.2489396]
[1726674450580,7.8451,127.47,127.45,0.4999196]
[1726674450778,7.8455,127.46,127.45,0.4999196]
[1726674451099,7.8455,127.46,127.45,0.2489396]
[1726674453317,27.8455,127.46,127.45,0.2489396]
[1726674453605,27.8455,127.46,127.41,0.2489396]
[1726674453606,27.848,127.42,127.41,0.2489396]
[1726674454175,39.2236,127.48,127.41,0.2489396]
[1726674454422,7.8474,127.43,127.41,0.2489396]
[1726674454607,7.848,127.42,127.41,0.2489396]
[1726674456100,7.8475,127.43,127.41,0.2489396]
[1726674457400,20.0,127.47,127.42,0.37647]
[1726674457601,7.8462,127.45,127.42,0.37647]
[1726674457774,7.8469,127.44,127.42,0.37647]
[1726674458815,19.6091,127.5,127.42,31.302454]
[1726674459014,7.8451,127.47,127.44,0.25098]
[1726674459189,19.6041,127.53,127.46,0.25098]
[1726674459387,7.8445,127.48,127.45,0.12549]
[1726674459606,7.8451,127.47,127.44,0.25098]
[1726674459808,19.61,127.49,127.44,0.25098]
[1726674460005,19.6129,127.47,127.43,18.7435]
[1726674460193,7.8474,127.43,127.42,0.12549]
[1726674460607,20.0,127.46,127.41,0.2489396]
[1726674460813,7.8478,127.43,127.41,0.2489396]
[1726674460997,20.0,127.46,127.41,0.2489396]
[1726674460998,7.848,127.42,127.41,0.2489396]
[1726674461189,7.8476,127.43,127.41,0.2489396]
[1726674462292,7.8469,127.44,127.42,0.12549]
[1726674462801,16.0046554,127.49,127.42,0.37647]
[1726674463111,7.847,127.44,127.42,0.37647]
[1726674463705,7.8464,127.45,127.42,0.37647]
[1726674464014,7.8454,127.47,127.42,45.34221907]
[1726674464191,16.0046554,127.49,127.44,24.153354]
[1726674464386,16.0046554,127.49,127.45,1.56902227]
[1726674464591,16.0046554,127.49,127.46,8.09638]
[1726674464802,16.0046554,127.49,127.47,23.902374]
[1726674465027,16.0046554,127.49,127.48,8.22077]
[1726674465338,0.2489396,127.55,127.48,8.22077]
[1726674465892,7.8423,127.52,127.48,8.22077]
[1726674466307,7.8423,127.52,127.48,0.37647]
[1726674466807,7.8425,127.51,127.48,0.37647]
[1726674467185,7.8425,127.51,127.49,0.12549]
[1726674467812,7.8426,127.51,127.49,0.12549]
[1726674468601,7.842,127.52,127.49,0.12549]
[1726674468992,0.2489396,127.55,127.5,0.25098]
[1726674469208,7.841,127.54,127.5,0.25098]
[1726674469519,7.8413,127.53,127.5,0.25098]
[1726674472699,0.2489396,127.55,127.51,23.902374]
[1726674472904,0.2489396,127.55,127.54,0.37647]
[1726674473209,0.2489396,127.55,127.54,1.9443398]
[1726674474624,0.2489396,127.55,127.54,25.7212238]
[1726674474931,0.2489396,127.55,127.54,33.5618238]
[1726674475224,0.2489396,127.55,127.54,24.153354]
[1726674476801,0.2489396,127.55,127.54,33.5616318]
[1726674476997,8.0867396,127.59,127.55,7.84]
[1726674477217,8.0867396,127.59,127.57,0.12549]
[1726674477218,0.2489396,127.59,127.57,0.12549]
[1726674477623,0.2489396,127.59,127.57,1.69296548]
[1726674477802,0.2489396,127.59,127.58,24.153354]
[1726674480360,8.0865396,127.59,127.58,0.37647]
[1726674480640,0.2489396,127.59,127.58,0.37647]
[1726674481424,0.2489396,127.59,127.58,8.21467]
[1726674481613,0.2489396,127.59,127.58,31.991554]
[1726674481940,0.2489396,127.59,127.58,54.531454]
[1726674482741,0.2489396,127.62,127.61,51.580554]
[1726674483947,8.0846396,127.62,127.61,0.37647]
[1726674485035,0.2489396,127.62,127.61,0.37647]
[1726674485461,0.2489396,127.62,127.61,51.580554]
[1726674486926,0.2489396,127.62,127.61,53.14717732]
[1726674487445,0.2489396,127.62,127.61,51.580554]
[1726674487945,0.2489396,127.66,127.64,24.153354]
[1726674488336,0.2489396,127.66,127.64,38.551454]
[1726674488751,0.2489396,127.66,127.65,33.55354588]
[1726674489049,0.2489396,127.66,127.65,31.987254]
[1726674489433,0.2489396,127.66,127.65,24.153354]
[1726674490123,8.0822396,127.66,127.65,0.37647]
[1726674490752,0.2489396,127.66,127.65,0.37647]
[1726674491655,0.2489396,127.66,127.65,31.987254]
[1726674491967,0.2489396,127.66,127.65,24.153354]
[1726674493123,0.2489396,127.66,127.65,33.55356899]
[1726674493526,0.2489396,127.66,127.65,49.69775821]
[1726674494250,0.2489396,127.66,127.65,51.26385828]
[1726674494449,0.2489396,127.66,127.65,76.10625821]
[1726674494751,0.2489396,127.7,127.68,7.8314]
[1726674494923,0.2489396,127.7,127.69,25.71909662]
[1726674495424,0.2489396,127.7,127.69,31.984754]
[1726674495628,0.2489396,127.7,127.69,49.69525821]
[1726674495841,0.2489396,127.7,127.69,66.49885003]
[1726674496050,0.2489396,127.7,127.69,64.93335821]
[1726674496360,0.2489396,127.7,127.69,92.92406587]
[1726674496533,0.2489396,127.7,127.69,91.35855821]
[1726674496850,19.563,127.8,127.71,0.37647]
[1726674496851,0.3324222,127.73,127.71,0.37647]
[1726674497149,0.3324222,127.73,127.72,24.153354]
[1726674497555,0.3324222,127.73,127.72,25.71873047]
[1726674497846,0.3324222,127.73,127.72,31.982954]
[1726674498243,0.3324222,127.73,127.72,83.54816806]
[1726674498441,0.3324222,127.73,127.72,118.84181625]
[1726674498647,0.3346417,127.78,127.76,24.153354]
[1726674498846,0.3346417,127.78,127.77,25.71831787]
[1726674499229,0.3346417,127.78,127.77,24.153354]
[1726674499424,0.3346417,127.78,127.77,0.37647]
[1726674501660,0.3346417,127.78,127.77,33.54462544]
[1726674502030,0.3346417,127.78,127.77,31.979854]
[1726674502536,0.3346417,127.78,127.77,33.54455387]
[1726674503150,0.3346417,127.78,127.77,31.979854]
[1726674503365,0.3346417,127.78,127.77,33.54456475]
[1726674503752,0.3346417,127.78,127.77,25.71814194]
[1726674503944,0.3346417,127.78,127.77,33.54464194]
[1726674504546,0.3346417,127.78,127.77,67.03074615]
[1726674505075,0.3346417,127.78,127.77,65.46595821]
[1726674505449,0.3346417,127.78,127.77,85.46595821]
[1726674507172,0.3346417,127.83,127.8,50.0]
[1726674507352,0.3346417,127.83,127.81,31.976954]
[1726674507550,0.3346417,127.83,127.82,31.600384]
[1726674507753,0.3346417,127.83,127.82,31.976854]
[1726674509070,0.3346417,127.83,127.82,24.153354]
[1726674512156,0.3346417,127.83,127.82,33.54101957]
[1726674512353,0.3346417,127.83,127.82,31.976854]
[1726674512564,0.3346417,127.83,127.82,87.99758927]
[1726674512958,0.3346417,127.83,127.82,40.899554]
[1726674513665,0.3346417,127.83,127.82,24.153354]
[1726674513880,0.3346417,127.83,127.78,17.71050421]
[1726674514257,0.3346417,127.83,127.77,92.5649]
[1726674514493,0.3346417,127.83,127.79,19.5629]
[1726674514660,0.3346417,127.83,127.8,7.8243]
[1726674515078,8.1575417,127.83,127.79,27.3881]
[1726674515382,7.8239,127.82,127.77,90.71030421]
[1726674515583,7.8239,127.82,127.79,0.12549]
[1726674516083,0.3346417,127.83,127.79,50.12549]
[1726674516284,8.1575417,127.83,127.79,7.95059]
[1726674516878,8.1575417,127.83,127.8,24.027864]
[1726674517174,0.3346417,127.83,127.81,0.12549]
[1726674517380,0.3346417,127.83,127.8,31.601384]
[1726674517381,0.3346417,127.83,127.82,0.12549]
[1726674518182,0.3346417,127.83,127.81,0.37647]
[1726674519362,7.8235,127.82,127.81,0.37647]
[1726674520281,8.1577417,127.83,127.81,1.9410479]
[1726674520585,8.1577417,127.83,127.81,0.37647]
[1726674521193,0.3346417,127.83,127.82,25.71790261]
[1726674521388,0.3346417,127.83,127.82,24.153354]
[1726674521562,0.3346417,127.83,127.82,31.976854]
[1726674521761,0.3346417,127.83,127.82,24.153354]
[1726674522782,8.1574417,127.83,127.82,0.37647]
[1726674522984,8.1574417,127.83,127.82,0.25098]
[1726674523183,8.1574417,127.83,127.82,0.12549]
[1726674524297,8.1574417,127.83,127.82,0.25098]
[1726674524987,8.1574417,127.83,127.82,0.37647]
[1726674526196,0.3346417,127.83,127.82,25.71789291]
[1726674526490,8.1574417,127.83,127.82,0.37647]
[1726674528078,0.3346417,127.83,127.82,0.37647]
[1726674528293,8.1574417,127.83,127.82,0.37647]
[1726674529988,0.3346417,127.83,127.82,0.37647]
[1726674531068,0.3346417,127.83,127.82,1.94090893]
[1726674531269,0.3346417,127.83,127.82,0.37647]
[1726674532200,8.1574417,127.83,127.82,0.37647]
[1726674532879,8.1574417,127.83,127.82,0.25098]
[1726674533512,0.3346417,127.83,127.82,0.37647]
[1726674534007,0.3346417,127.83,127.82,24.153354]
[1726674537112,0.3346417,127.83,127.82,0.37647]
[1726674537409,8.1574417,127.83,127.82,0.37647]
[1726674537991,0.3346417,127.83,127.82,25.71783753]
[1726674538199,0.3346417,127.83,127.82,24.153354]
[1726674539717,0.3346417,127.83,127.82,31.976854]
[1726674539919,0.3346417,127.83,127.82,43.712054]
[1726674540216,0.3346417,127.83,127.82,51.535554]
[1726674540590,0.3346417,127.83,127.82,24.153354]
[1726674540797,0.3346417,127.83,127.79,19.5623]
[1726674540996,8.1579417,127.83,127.79,27.3874]
[1726674541330,0.3346417,127.83,127.77,22.9998]
[1726674541832,7.8246,127.81,127.77,30.826]
[1726674542003,0.3346417,127.83,127.77,16.3659]
[1726674542004,7.8247,127.8,127.77,16.3659]
[1726674542707,7.8242,127.81,127.77,24.1923]
[1726674542903,7.8237,127.82,127.78,7.8259]
[1726674543208,8.1576417,127.83,127.8,24.153354]
[1726674543524,0.3346417,127.83,127.81,23.776884]
[1726674543746,0.3346417,127.83,127.82,0.37647]
[1726674546330,8.1574417,127.83,127.82,0.37647]
[1726674546908,8.1574417,127.83,127.82,1.94098964]
[1726674547111,0.3346417,127.83,127.82,1.94098964]
[1726674547511,0.3346417,127.83,127.82,0.37647]
[1726674548215,8.1574417,127.83,127.82,0.37647]
[1726674548425,19.8918417,127.83,127.77,16.3659]
[1726674548621,0.3346417,127.83,127.77,43.7582]
[1726674549016,0.3346417,127.83,127.79,19.5629]
[1726674549419,7.8238,127.82,127.78,7.8257]
[1726674549621,7.8238,127.82,127.8,0.12549]
[1726674550413,7.8238,127.82,127.81,0.12549]
[1726674550722,8.1576417,127.83,127.82,0.12549]
[1726674551134,7.8235,127.82,127.8,0.25098]
[1726674551333,7.8235,127.82,127.81,0.12549]
[1726674551642,7.8248,127.8,127.77,16.3659]
[1726674552223,7.8257,127.79,127.75,77.396]
[1726674552534,7.8272,127.76,127.72,27.402]
[1726674552916,7.8278,127.75,127.72,19.5729]
[1726674553331,7.8278,127.75,127.71,24.3247]
[1726674553534,7.8294,127.73,127.69,27.4088]
[1726674554037,7.8284,127.74,127.7,7.8308]
[1726674554423,7.8294,127.73,127.69,27.4088]
[1726674554811,6.1845,127.77,127.7,7.8303]
[1726674555015,6.1845,127.77,127.69,69.5775]
[1726674555218,7.8276,127.76,127.72,23.776884]
[1726674555442,6.1845,127.77,127.73,0.37647]
[1726674555816,6.1845,127.77,127.73,8.20547]
[1726674556015,16.1463,127.79,127.73,0.37647]
[1726674556417,35.7101,127.79,127.7,7.8304]
[1726674556929,7.8284,127.74,127.7,7.8304]
[1726674557126,7.8291,127.73,127.69,27.8312]
[1726674557329,7.8285,127.74,127.7,7.8308]
[1726674557836,7.8285,127.74,127.72,0.37647]
[1726674558416,7.8279,127.75,127.72,0.37647]
[1726674558835,16.2303599,127.79,127.72,0.37647]
[1726674559027,7.8282,127.75,127.72,0.37647]
[1726674559229,7.8285,127.74,127.72,0.37647]
[1726674559424,7.828,127.75,127.72,0.37647]
[1726674559623,16.2303599,127.79,127.74,0.37647]
[1726674559941,35.7939599,127.79,127.74,0.37647]
[1726674560239,7.8276,127.76,127.74,0.37647]
[1726674561617,7.8277,127.75,127.74,0.37647]
[1726674561820,7.8271,127.76,127.74,0.37647]
[1726674562226,7.8266,127.77,127.74,0.37647]
[1726674562937,23.75732842,127.84,127.8,92.0893401]
[1726674563139,22.4032,127.84,127.8,92.0893401]
[1726674563649,17.19207671,127.87,127.81,0.25098]
[1726674563820,8.1183962,127.83,127.81,0.25098]
[1726674564023,0.2949962,127.83,127.82,0.12549]
[1726674564328,0.2949962,127.83,127.81,0.25098]
[1726674565335,7.8235,127.82,127.81,0.25098]
[1726674566036,0.2949962,127.83,127.82,0.12549]
[1726674567070,8.1177962,127.83,127.82,0.12549]
[1726674567850,7.8235,127.82,127.81,0.25098]
[1726674568037,7.8241,127.81,127.8,92.0893401]
[1726674569425,30.3276,127.81,127.8,92.0893401]
[1726674573651,7.8241,127.81,127.8,92.0893401]
[1726674576934,7.8241,127.81,127.8,92.4658101]
[1726674578557,7.8237,127.82,127.8,92.4658101]
[1726674578960,7.8241,127.81,127.8,92.4658101]
[1726674579677,7.8241,127.81,127.8,92.0893401]
[1726674587343,7.8241,127.81,127.8,92.3403201]
[1726674589080,0.2949962,127.83,127.81,0.25098]
[1726674589869,0.2949962,127.83,127.8,92.0893401]
[1726674590366,7.8241,127.81,127.8,92.3403201]
[1726674590869,7.8236,127.82,127.8,92.4658101]
[1726674591051,7.8236,127.82,127.81,0.37647]
[1726674591765,8.1179962,127.83,127.81,0.37647]
[1726674592261,8.1179962,127.83,127.82,0.12549]
[1726674592566,8.1179962,127.83,127.82,0.37647]
[1726674593354,7.8237,127.82,127.81,0.12549]
[1726674593557,0.2949962,127.83,127.8,92.0893401]
[1726674593558,7.8241,127.81,127.8,92.3403201]
[1726674594064,7.8241,127.81,127.8,92.4658101]
[1726674596879,7.8241,127.81,127.8,92.0893401]
[1726674597671,27.3843,127.81,127.8,92.0893401]
[1726674598761,7.8241,127.81,127.8,92.0893401]
[1726674603371,8.1179962,127.83,127.81,0.25098]
[1726674603566,0.2949962,127.83,127.82,0.12549]
[1726674604459,0.2949962,127.83,127.82,25.71767527]
[1726674605057,0.2949962,127.83,127.82,24.153354]
[1726674605772,0.2949962,127.83,127.82,0.37647]
[1726674606456,0.2949962,127.83,127.82,24.153354]
[1726674607777,0.2949962,127.83,127.82,31.976854]
[1726674609572,0.2949962,127.83,127.82,33.54098439]
[1726674609760,0.2949962,127.83,127.82,101.2514886]
[1726674609962,0.2949962,127.88,127.85,24.027864]
[1726674610164,0.2949962,127.88,127.87,24.153354]
[1726674610471,0.2949962,127.88,127.87,55.057954]
[1726674611984,0.2949962,127.88,127.87,75.057954]
[1726674612175,0.2949962,127.88,127.87,55.057954]
[1726674612379,0.2949962,127.88,127.87,67.237554]
[1726674612766,0.2949962,127.88,127.87,75.057954]
[1726674613665,0.2949962,127.88,127.87,125.057954]
[1726674614480,0.2949962,127.88,127.87,126.6212256]
[1726674614672,0.2949962,127.92,127.91,24.153354]
[1726674615199,0.2949962,127.92,127.91,0.37647]
[1726674616391,0.2949962,127.92,127.91,20.37647]
[1726674616589,0.2949962,127.92,127.91,45.71658343]
[1726674617273,0.2949962,127.92,127.91,51.971254]
[1726674617805,0.2949962,127.92,127.88,7.8197]
[1726674617970,45.782,128.0,127.87,73.0842]
[1726674617971,45.782,128.0,127.87,23.0842]
[1726674617972,7.8185,127.91,127.87,23.0842]
[1726674618173,19.5379,127.96,127.87,23.0842]
[1726674618174,7.8186,127.9,127.87,23.0842]
[1726674618383,7.8193,127.89,127.87,16.5438]
[1726674619394,0.3027277,127.92,127.87,16.5438]
[1726674619577,8.1204277,127.92,127.88,7.8194]
[1726674619776,8.1204277,127.92,127.89,24.153354]
[1726674620300,0.3027277,127.92,127.89,31.972254]
[1726674620590,0.3027277,127.92,127.91,24.153354]
[1726674621785,0.3027277,127.92,127.91,8.19437]
[1726674621976,0.3027277,127.92,127.91,31.971254]
[1726674624507,0.3027277,127.92,127.91,24.153354]
[1726674624695,0.3027277,127.92,127.91,31.971254]
[1726674626082,0.3027277,127.92,127.91,24.153354]
[1726674626279,7.8193,127.89,127.87,16.5438]
[1726674626478,7.818,127.91,127.87,24.3641]
[1726674627209,7.8187,127.9,127.87,16.5438]
[1726674627519,7.8196,127.89,127.87,16.5438]
[1726674627700,7.8196,127.89,127.86,6.3552]
[1726674627701,7.8196,127.89,127.85,27.3752]
[1726674628012,7.8196,127.89,127.84,15.6354]
[1726674628013,7.82,127.88,127.84,23.4576]
[1726674628215,0.3027277,127.92,127.84,15.6354]
[1726674628505,7.8184,127.91,127.87,7.8203]
[1726674628809,0.3027277,127.92,127.88,1.56350776]
[1726674629104,0.3027277,127.92,127.91,0.12549]
[1726674629304,8.1200277,127.92,127.91,0.12549]
[1726674630605,0.3027277,127.92,127.91,0.12549]
[1726674630804,0.3027277,127.92,127.91,25.71659592]
[1726674631004,0.3027277,127.92,127.91,24.153354]
[1726674631602,0.3027277,127.92,127.91,33.53434011]
[1726674631785,0.3027277,127.92,127.91,31.971254]
[1726674634406,0.3027277,127.92,127.91,101.971254]
[1726674634610,0.3027277,127.92,127.91,103.53406851]
[1726674634912,0.3027277,127.92,127.91,101.971254]
[1726674635892,0.3027277,127.92,127.91,103.5339581]
[1726674636206,0.0519277,127.92,127.91,103.5339581]
[1726674636593,0.2668889,127.96,127.91,103.5339581]
[1726674636594,0.2668889,127.96,127.95,7.8155]
[1726674636911,0.2668889,127.96,127.95,31.717874]
[1726674637498,0.2668889,127.96,127.95,23.902374]
[1726674637993,0.2668889,127.96,127.95,24.153354]
[1726674638204,7.8171,127.93,127.89,56.1114]
[1726674638404,7.8162,127.94,127.89,56.1114]
[1726674638606,7.8162,127.94,127.9,23.7324]
[1726674640522,7.8157,127.95,127.91,31.971254]
[1726674640725,7.8162,127.94,127.91,24.153354]
[1726674641226,0.2668889,127.96,127.93,24.153354]
[1726674641227,7.8157,127.95,127.93,24.153354]
[1726674641529,7.8157,127.95,127.94,1.93950876]
[1726674641720,7.8157,127.95,127.94,0.37647]
[1726674642105,7.8157,127.95,127.94,1.93950903]
[1726674642417,8.0819889,127.96,127.94,0.37647]
[1726674642624,8.0819889,127.96,127.94,1.93944019]
[1726674643123,8.0819889,127.96,127.95,24.153354]
[1726674643124,0.2668889,127.96,127.95,24.153354]
[1726674643622,0.2668889,127.96,127.95,0.37647]
[1726674648202,8.0817889,127.96,127.95,0.37647]
[1726674649203,0.2668889,127.96,127.95,0.37647]
[1726674650323,0.2668889,127.96,127.95,1.93924209]
[1726674650623,0.2668889,127.96,127.95,31.968854]
[1726674651024,0.2668889,127.96,127.95,89.21815821]
[1726674651232,0.2668889,127.96,127.95,90.78060174]
[1726674651604,0.2668889,127.96,127.95,163.4441842]
[1726674651804,0.2668889,127.96,127.95,161.88175821]
[1726674652925,0.2668889,128.0,127.99,0.37647]
[1726674653111,0.2668889,128.0,127.99,24.153354]
[1726674654234,0.2668889,128.0,127.99,31.966454]
[1726674654430,0.2668889,128.0,127.99,33.5284927]
[1726674657139,0.2668889,128.0,127.99,31.966454]
[1726674658139,8.0793889,128.0,127.96,7.8147]
[1726674658342,8.0793889,128.0,127.97,20.0]
[1726674658722,0.2668889,128.0,127.98,1.56240862]
[1726674658929,0.2668889,128.0,127.97,39.5355]
[1726674659132,0.2668889,128.0,127.99,7.8131]
[1726674659339,0.2668889,128.0,127.99,9.37525815]
[1726674659544,0.2668889,128.0,127.99,7.8131]
[1726674660030,0.2668889,128.0,127.99,31.966454]
[1726674660625,0.2668889,128.0,127.99,24.153354]
[1726674660942,8.0794889,128.0,127.98,0.12549]
[1726674661149,7.8132,127.99,127.95,23.9581]
[1726674661327,0.2668889,128.0,127.96,19.537]
[1726674661842,0.2668889,128.0,127.98,7.8137]
[1726674662050,0.2668889,128.0,127.99,8.06408]
[1726674662422,0.2668889,128.0,127.99,31.966454]
[1726674664222,0.2668889,128.0,127.99,24.153354]
[1726674666328,8.0793889,128.0,127.99,0.37647]
[1726674666542,8.0793889,128.0,127.86,0.2668889]
[1726674666543,23.776884,127.92,127.86,0.2668889]
[1726674666846,7.819,127.9,127.86,0.2668889]
[1726674667045,6.3841,127.97,127.87,67.71050421]
[1726674667251,7.8149,127.96,127.89,75.52960421]
[1726674667553,6.3841,127.97,127.88,7.8197]
[1726674667554,7.8156,127.95,127.88,7.8197]
[1726674667737,7.8149,127.96,127.89,7.819]
[1726674667931,6.3841,127.97,127.89,7.819]
[1726674668439,7.8158,127.95,127.89,7.819]
[1726674668840,19.7994889,128.0,127.91,23.776884]
[1726674669034,19.7994889,128.0,127.92,7.8173]
[1726674669035,0.2668889,128.0,127.92,7.8173]
[1726674669358,0.2668889,128.0,127.91,23.776884]
[1726674669654,7.8167,127.94,127.92,0.37647]
[1726674669829,7.8155,127.95,127.92,0.37647]
[1726674670028,7.8149,127.96,127.92,0.37647]
[1726674671254,0.2668889,128.0,127.92,0.37647]
[1726674671255,7.8156,127.95,127.92,0.37647]
[1726674671950,7.815,127.96,127.92,0.37647]